fUSD/lending_fUSD_20240524
["ID","MTS","AMOUNT","RATE_DAILY","PERIOD"]
[327869472,1716567040790,-3000.0,0.00024999,5]
[327869474,1716567040798,-3000.0,0.00024999,5]
[327869475,1716567040808,-3000.0,0.00024999,5]
[327869477,1716567040816,-2513.44243306,0.00024999,5]
[327869479,1716567040828,-486.55756694,0.00024999,5]
[327869481,1716567040838,-2992.48350001,0.00024999,5]
[327869483,1716567040847,-64858.95893305,0.00025,2]
[327869485,1716567040858,-835068.32946054,0.00025,2]
[327869487,1716567040871,-5198.34195,0.00025,2]
[327869496,1716567040959,-7059.15225,0.00019887,2]
[327869498,1716567040971,-386.7847,0.00019887,2]
[327869501,1716567040981,-866.57163133,0.00019887,2]
[327869503,1716567040992,-886.45947666,0.00019887,2]
[327869504,1716567041004,-280.62050714,0.00019887,2]
[327869505,1716567041015,-256.89893274,0.00019887,2]
[327869506,1716567041026,-263.51250213,0.00019887,2]
[327869507,1716567041035,-677.16303539,0.00025,2]
[327869508,1716567041046,-6479.2731675,0.00025,2]
[327869509,1716567041057,-8895.15,0.00025,2]
[327869510,1716567041069,-35223.6304584,0.00025,2]
[327869511,1716567041082,-42515.58346076,0.00025,2]
[327869512,1716567041093,-19967.95504947,0.00025,2]
[327869513,1716567041104,-1895.60277615,0.00025,2]
[327869611,1716567042116,-432.04405054,0.00019887,2]
[327869613,1716567042128,-1769.58902733,0.00019887,2]
[327869616,1716567042139,-601.29985689,0.00019887,2]
[327869651,1716567042463,-7197.06706524,0.00019887,2]
[327869653,1716567042473,-122249.95983658,0.00025,2]
[327869734,1716567043180,-35230.0,0.00025,2]
[327869739,1716567043196,-1438.8239,0.00025,2]
[327869745,1716567043212,-2340.0,0.00025,2]
[327869750,1716567043227,-3430.59188283,0.00025,2]
[327869781,1716567043370,-308.97525516,0.00017259,2]
[327869784,1716567043381,-59.85199484,0.00017259,2]
[327869829,1716567043813,-500.0,0.00017259,2]
[327869832,1716567043829,-230.41331505,0.00017259,2]
[327869834,1716567043841,-1381.93423711,0.00017259,2]
[327869836,1716567043852,-10000.0,0.00019887,2]
[327869838,1716567043864,-338301.91696144,0.00025,2]
[327869841,1716567043882,-150.02546728,0.00025,2]
[327869843,1716567043896,-213.48183145,0.00025,2]
[327869846,1716567043908,-927.04584446,0.00025,2]
[327869848,1716567043919,-155.11685802,0.00025,2]
[327869850,1716567043931,-155.0,0.00025,2]
[327869852,1716567043942,-224.37055639,0.00025,2]
[327869854,1716567043954,-1150.0,0.00025,2]
[327869857,1716567043964,-501.79451,0.00025,2]
[327869859,1716567043976,-176.934825,0.00025,4]
[327869861,1716567043987,-202.51845455,0.00025,7]
[327869863,1716567043999,-157.83404715,0.00025267,2]
[327869865,1716567044011,-219.16976341,0.00025288,2]
[327869868,1716567044023,-242.58200706,0.00025298,2]
[327869870,1716567044034,-3293.95940148,0.00025298,2]
[327869872,1716567044045,-181.501984,0.00025319,2]
[327869874,1716567044056,-389.114263,0.00025319,2]
[327869876,1716567044067,-183.896947,0.00025319,2]
[327869878,1716567044077,-255.679047,0.00025319,2]
[327869880,1716567044087,-186.015969,0.00025319,2]
[327869883,1716567044098,-181.501984,0.00025319,2]
[327869885,1716567044109,-219.16976341,0.00025345,2]
[327869887,1716567044120,-153.1512564,0.0002541,2]
[327869889,1716567044132,-150.55289131,0.00025525,2]
[327869891,1716567044142,-389.114263,0.00025636,2]
[327869893,1716567044154,-255.679047,0.00025636,2]
[327869896,1716567044166,-153.16669292,0.00025697,2]
[327869898,1716567044178,-157.83404715,0.0002571,2]
[327869900,1716567044189,-4106.40383546,0.00025855,2]
[327869902,1716567044200,-501.79451,0.0002587,2]
[327869904,1716567044212,-163.36,0.0002589,2]
[327869906,1716567044224,-219.16976341,0.00025927,2]
[327869908,1716567044236,-219.16976341,0.00025934,2]
[327869909,1716567044247,-389.114263,0.00025952,2]
[327869910,1716567044259,-255.679047,0.00025952,2]
[327869911,1716567044270,-181.501984,0.00025952,2]
[327869912,1716567044280,-23445.03544886,0.00026,5]
[327869913,1716567044291,-154.55403175,0.00026012,2]
[327869914,1716567044301,-168.25087738,0.0002602,2]
[327869915,1716567044312,-157.83404715,0.00026025,2]
[327869916,1716567044322,-200.0,0.0002604,2]
[327869917,1716567044334,-157.83404715,0.00026118,2]
[327869918,1716567044347,-153.16669292,0.00026133,2]
[327869919,1716567044358,-161.17195589,0.00026146,2]
[327869921,1716567044372,-150.55289131,0.0002615,2]
[327869923,1716567044384,-168.25087738,0.00026174,2]
[327869926,1716567044396,-158.08379996,0.00026198,2]
[327869928,1716567044407,-389.114263,0.00026269,2]
[327869930,1716567044418,-255.679047,0.00026269,2]
[327869932,1716567044427,-151.0,0.0002627,12]
[327869934,1716567044438,-153.32326097,0.00026396,2]
[327869936,1716567044456,-219.16976341,0.00026423,2]
[327869938,1716567044467,-153.32326097,0.0002655,2]
[327869941,1716567044480,-219.16976341,0.00026562,2]
[327869943,1716567044492,-389.114263,0.00026585,2]
[327869945,1716567044504,-255.679047,0.00026585,2]
[327869947,1716567044515,-181.501984,0.00026585,2]
[327869950,1716567044527,-181.501984,0.00026585,2]
[327869952,1716567044538,-1000.0,0.000266,9]
[327869954,1716567044549,-1300.0,0.000267,9]
[327869956,1716567044559,-180.0617525,0.00026746,2]
[327869958,1716567044570,-150.55289131,0.00026775,2]
[327869960,1716567044581,-200.0,0.000268,9]
[327869962,1716567044592,-4106.40383546,0.00026809,2]
[327869964,1716567044602,-155.14887089,0.00026829,2]
[327869966,1716567044614,-166.66666667,0.00026884,2]
[327869968,1716567044627,-200.0,0.000269,9]
[327869971,1716567044637,-335.42,0.00026921,2]
[327869973,1716567044647,-174.0,0.00026921,2]
[327869975,1716567044658,-153.16669292,0.00026963,2]
[327869977,1716567044668,-536.996,0.00026968,2]
[327869979,1716567044680,-8693.10271126,0.00027,2]
[327869981,1716567044691,-1200.0,0.00027,2]
[327869983,1716567044702,-154.45963167,0.00027016,2]
[327869985,1716567044713,-299.07538621,0.00027068,2]
[327869987,1716567044725,-445.5768486,0.00027068,2]
[327869990,1716567044735,-500.0,0.00027068,2]
[327869992,1716567044746,-37491.18177114,0.00027068,2]
[327869994,1716567044757,-1039.68474786,0.00027068,2]
[327869996,1716567044768,-2000.0,0.00027068,2]
[327869998,1716567044779,-200.0,0.00027068,2]
[327870000,1716567044790,-501.79452,0.0002713,2]
[327870002,1716567044800,-219.16976341,0.00027136,2]
[327870004,1716567044812,-292.79995488,0.00027168,2]
[327870006,1716567044823,-250000.0,0.000272,2]
[327870009,1716567044834,-596.45,0.000272,2]
[327870011,1716567044845,-307.01,0.00027252,2]
[327870013,1716567044856,-257.11879413,0.00027278,2]
[327870015,1716567044869,-1043.83643081,0.00027278,2]
[327870017,1716567044880,-500.0,0.00027278,2]
[327870019,1716567044892,-200.0,0.00027279,2]
[327870022,1716567044903,-500.0,0.00027279,2]
[327870024,1716567044914,-200.0,0.00027279,2]
[327870026,1716567044926,-154.9442931,0.00027321,2]
[327870028,1716567044937,-2000.0,0.00027339,2]
[327870030,1716567044948,-200.0,0.00027339,2]
[327870032,1716567044959,-154.14988222,0.00027354,2]
[327870035,1716567044970,-805.18519156,0.0002739,2]
[327870037,1716567044981,-280.12,0.00027397,10]
[327870039,1716567044992,-479.67,0.00027397,10]
[327870041,1716567045002,-399.72,0.00027397,10]
[327870043,1716567045013,-1424.43572808,0.000274,2]
[327870045,1716567045024,-180.02106415,0.000274,2]
[327870047,1716567045036,-150.55289131,0.000274,2]
[327870049,1716567045047,-166.32466518,0.000274,2]
[327870051,1716567045058,-223.76753178,0.000274,2]
[327870054,1716567045070,-164.45040785,0.000274,2]
[327870056,1716567045080,-6109.16847073,0.000274,2]
[327870058,1716567045091,-657.7,0.000274,2]
[327870060,1716567045102,-657.7,0.000274,2]
[327870062,1716567045114,-657.7,0.000274,2]
[327870064,1716567045127,-657.7,0.000274,2]
[327870066,1716567045137,-657.7,0.000274,2]
[327870069,1716567045148,-657.7,0.000274,2]
[327870071,1716567045158,-657.7,0.000274,2]
[327870073,1716567045168,-657.7,0.000274,2]
[327870075,1716567045179,-657.7,0.000274,2]
[327870077,1716567045191,-657.7,0.000274,2]
[327870079,1716567045202,-283.534655,0.000274,5]
[327870081,1716567045214,-218.8764611,0.0002749,2]
[327870084,1716567045226,-154.96,0.0002749,2]
[327870086,1716567045236,-154.96,0.0002749,2]
[327870088,1716567045248,-154.96,0.0002749,2]
[327870090,1716567045258,-154.96,0.0002749,2]
[327870092,1716567045270,-154.96,0.0002749,2]
[327870094,1716567045281,-991.74295736,0.0002749,15]
[327870097,1716567045292,-248.97029145,0.00027497,2]
[327870099,1716567045303,-326.8758113,0.00027498,2]
[327870101,1716567045314,-268.32530534,0.00027498,2]
[327870103,1716567045325,-2911.90455454,0.00027498,2]
[327870105,1716567045336,-155.24268003,0.00027498,2]
[327870107,1716567045348,-372.66409471,0.00027498,2]
[327870109,1716567045359,-906.29479985,0.00027498,2]
[327870112,1716567045371,-155.16197257,0.00027498,2]
[327870114,1716567045382,-155.29099376,0.00027498,2]
[327870116,1716567045392,-155.25088155,0.00027498,2]
[327870118,1716567045403,-6136.91024807,0.00027498,2]
[327870120,1716567045414,-4623.93086454,0.00027498,2]
[327870123,1716567045429,-190.56664087,0.00027498,2]
[327870125,1716567045440,-155.7061596,0.00027498,2]
[327870127,1716567045455,-90.90316092,0.00027498,2]
[327870129,1716567045469,-64.09683908,0.00027498,2]
[327870131,1716567045479,-155.0,0.00027498,2]
[327870134,1716567045491,-535.6337843,0.00027498,2]
[327870136,1716567045502,-167.79510235,0.00027498,2]
[327870138,1716567045512,-712.80280056,0.00027498,2]
[327870140,1716567045523,-261.92852232,0.00027498,2]
[327870142,1716567045535,-523.26379453,0.00027498,2]
[327870144,1716567045545,-326.03857462,0.00027499,2]
[327870146,1716567045556,-263.17590195,0.00027499,2]
[327870148,1716567045566,-150.0,0.00027499,2]
[327870150,1716567045577,-150.0,0.00027499,2]
[327870152,1716567045586,-150.0,0.00027499,2]
[327870154,1716567045595,-637.10008111,0.000275,5]
[327870156,1716567045604,-469156.58758789,0.000275,15]
[327870207,1716567045996,-360.33029721,0.00017258,2]
[327870209,1716567046006,-364.49648891,0.00017259,2]
[327870211,1716567046016,-502.56244325,0.00017259,2]
[327870214,1716567046027,-9875.61077063,0.00019887,2]
[327870216,1716567046039,-124.38922937,0.00019887,2]
[327870218,1716567046049,-1562.11077063,0.000275,15]
[327870220,1716567046060,-2734.835776,0.000275,15]
[327870222,1716567046071,-413.22543041,0.000275,15]
[327870234,1716567046177,-8747.68044,0.000275,15]
[327870237,1716567046189,-3376.45286615,0.000275,15]
[327870363,1716567047409,-317.72694655,0.00017258,2]
[327870365,1716567047419,-51.76305345,0.00017258,2]
[327870375,1716567047505,-371.94974118,0.00017258,2]
[327870377,1716567047515,-284.86923051,0.00017259,2]
[327870379,1716567047525,-10000.0,0.00019887,2]
[327870381,1716567047535,-321.96055433,0.00024999,2]
[327870383,1716567047544,-333.1,0.00027397,10]
[327870385,1716567047553,-11419.88618009,0.000275,15]
[327870776,1716567072977,299.07538621,0.00010011,2]
[327870777,1716567079292,117075.56593136,0.00010011,2]
[327870780,1716567141039,3693.1549,9.913e-05,2]
[327870784,1716567238390,231.51,8.918e-05,2]
[327870788,1716567819585,-158.47352896,0.00010704,2]
[327870789,1716567819610,-575.63967207,0.00010804,2]
[327870790,1716567819635,-166.7,0.00010804,2]
[327870825,1716568233727,-505.36917605,0.00013404,2]
[327870826,1716568233739,-1064.69028387,0.00013404,2]
[327870827,1716568233750,-306.53561288,0.00013405,2]
[327870828,1716568233761,-237.48860909,0.00013406,2]
[327870829,1716568233771,-423.71279463,0.00013406,2]
[327870830,1716568233782,-992.66034348,0.00013406,2]
[327870831,1716568233794,-6533.05623132,0.00013406,2]
[327870832,1716568233808,-3007.09497236,0.00013406,2]
[327870833,1716568233819,-837.07031889,0.00013407,2]
[327870834,1716568233831,-2364.2726144,0.00013407,2]
[327870835,1716568233846,-150.0,0.00013408,2]
[327870836,1716568233856,-155.0,0.00013408,2]
[327870837,1716568233868,-1381.93423711,0.00013408,2]
[327870838,1716568233879,-790.26530989,0.00013409,2]
[327870839,1716568233890,-171.24,0.00013973,2]
[327870840,1716568233901,-299.99,0.00013973,2]
[327870841,1716568233912,-210.0,0.00014749,2]
[327870842,1716568233924,-224.99,0.00014771,2]
[327870843,1716568233935,-499.99,0.00014771,2]
[327870844,1716568233946,-3100.04,0.00015,2]
[327870845,1716568233956,-293.0,0.00016224,2]
[327870846,1716568233968,-155.0,0.00017257,2]
[327870847,1716568233979,-277.29875796,0.00017258,2]
[327870848,1716568233990,-1908.9,0.00017808,2]
[327870849,1716568234000,-1000.0,0.00019337,2]
[327870850,1716568234011,-219.93,0.00019415,2]
[327870851,1716568234021,-250.0,0.00019995,2]
[327870853,1716568234032,-445.25949804,0.0002,2]
[327870855,1716568234043,-862.59931804,0.00020771,2]
[327870857,1716568234053,-6241.7602304,0.00020772,2]
[327870859,1716568234063,-200.0,0.00020773,2]
[327870861,1716568234074,-7974.36475491,0.00020773,2]
[327870864,1716568234087,-10573.8407,0.00020773,2]
[327870866,1716568234099,-4579.69176715,0.00020773,2]
[327870869,1716568234114,-772.10277794,0.00020773,2]
[327870871,1716568234124,-155.77,0.00021015,2]
[327870873,1716568234134,-3643.58113847,0.00021021,2]
[327870900,1716568234145,-250.0,0.00021024,2]
[327870903,1716568234389,-1430.81,0.00021065,2]
[327870905,1716568234402,-2177.64,0.00021078,2]
[327870907,1716568234412,-500.0,0.00021103,2]
[327870909,1716568234421,-1575.39,0.00021178,2]
[327870911,1716568234431,-155.77,0.00021289,2]
[327870913,1716568234440,-155.77,0.00021563,2]
[327870915,1716568234449,-153.32,0.00021625,2]
[327870917,1716568234459,-153.32,0.00021633,2]
[327870919,1716568234469,-153.32,0.00021641,2]
[327870921,1716568234478,-153.32,0.0002165,2]
[327870923,1716568234488,-153.32,0.00021658,2]
[327870925,1716568234497,-153.32,0.00021666,2]
[327870927,1716568234506,-153.32,0.00021675,2]
[327870929,1716568234516,-219.93,0.00021679,2]
[327870931,1716568234525,-153.32,0.00021683,2]
[327870933,1716568234535,-153.32,0.00021691,2]
[327870935,1716568234544,-153.32,0.000217,2]
[327870938,1716568234555,-153.32,0.00021708,2]
[327870939,1716568234564,-153.32,0.00021716,2]
[327870940,1716568234573,-153.32,0.00021725,2]
[327870941,1716568234582,-153.32,0.00021733,2]
[327870942,1716568234591,-155.77,0.00021837,2]
[327870943,1716568234601,-4472.24254459,0.000219,2]
[327870944,1716568234614,-2301.46980535,0.000219,2]
[327870945,1716568234623,-226.59,0.00021918,2]
[327870946,1716568234632,-459.54,0.00021918,2]
[327870947,1716568234641,-250.0,0.00021918,2]
[327870948,1716568234650,-4886.2210613,0.00022,14]
[327870949,1716568234659,-154.55403175,0.00022091,2]
[327870950,1716568234668,-155.77,0.00022111,2]
[327870951,1716568234677,-158.21260215,0.00022475,2]
[327870952,1716568234687,-204.20305472,0.00022498,2]
[327870953,1716568234696,-9157.92762804,0.00022561,2]
[327870954,1716568234705,-8378.23,0.00022562,2]
[327870955,1716568234714,-151.23946595,0.00022635,2]
[327870956,1716568234723,-642.5,0.00022707,3]
[327870957,1716568234732,-196.0,0.00022717,2]
[327870958,1716568234741,-445.0,0.00022717,2]
[327870959,1716568234751,-215.0,0.00022717,2]
[327870960,1716568234759,-1649.0,0.00022717,2]
[327870961,1716568234769,-3261.45112609,0.00022717,2]
[327870962,1716568234780,-2307.44308,0.00022717,2]
[327870963,1716568234791,-268.47776989,0.00022717,2]
[327870988,1716568238620,-410.5352738,0.00019336,2]
[327870989,1716568238631,-4309.59450315,0.00022717,2]
[327870990,1716568238642,-6469.61154165,0.00022717,2]
[327870991,1716568238654,-21287.42197922,0.00022717,2]
[327870992,1716568238663,-289.0,0.00022717,2]
[327870993,1716568238672,-1466.0,0.00022717,2]
[327870994,1716568238681,-154.45963167,0.0002281,2]
[327870995,1716568238691,-157.78948284,0.00022926,2]
[327870996,1716568238700,-157.78948284,0.00022948,2]
[327870997,1716568238708,-172.33,0.00023121,2]
[327870998,1716568238718,-1000.0,0.00023121,2]
[327870999,1716568238727,-153.1512564,0.00023154,2]
[327871000,1716568238736,-258.7541409,0.00023208,2]
[327871001,1716568238745,-154.94429311,0.00023308,2]
[327871002,1716568238754,-154.94429311,0.00023328,2]
[327871003,1716568238763,-151.23946595,0.00023338,2]
[327871004,1716568238772,-2005.42016305,0.000234,2]
[327871005,1716568238781,-168.25087738,0.00023413,2]
[327871006,1716568238791,-154.94429311,0.00023466,2]
[327871007,1716568238799,-153.15010597,0.00023507,2]
[327871008,1716568238811,-153.15010597,0.00023636,2]
[327871009,1716568238820,-152.94267183,0.00023797,2]
[327871010,1716568238832,-1430.81,0.00023805,2]
[327871011,1716568238843,-219.93,0.00023943,2]
[327871012,1716568238853,-180.0,0.0002423,2]
[327871013,1716568238862,-153.15010597,0.00024369,2]
[327871014,1716568238872,-152.94267183,0.00024458,2]
[327871015,1716568238881,-166.66666666,0.00024498,2]
[327871016,1716568238890,-258.75414086,0.00024563,2]
[327871017,1716568238899,-157.78948284,0.00024566,2]
[327871018,1716568238913,-3066.0,0.000246,3]
[327871019,1716568238922,-154.55403175,0.00024622,2]
[327871020,1716568238932,-157.78948284,0.00024743,2]
[327871021,1716568238942,-151.23946595,0.00024813,2]
[327871022,1716568238952,-151.23946595,0.00024851,2]
[327871023,1716568238961,-214.0,0.000249,2]
[327871024,1716568238970,-2001.84178083,0.000249,2]
[327871025,1716568238986,-256.18631763,0.000249,2]
[327871026,1716568238996,-95.73368237,0.00024998,2]
[327871027,1716568239056,-231.65703035,0.00024998,2]
[327871028,1716568239066,-156.78942446,0.00024998,2]
[327871029,1716568239076,-894.97392786,0.00024998,2]
[327871030,1716568239085,-1242.87315941,0.00024998,2]
[327871031,1716568239095,-157.78948284,0.00025004,2]
[327871032,1716568239104,-155.46791382,0.00025012,2]
[327871034,1716568239114,-153.32326098,0.00025184,2]
[327871036,1716568239124,-158.08379997,0.00025185,2]
[327871038,1716568239134,-171.1,0.000252,2]
[327871040,1716568239143,-1591.92,0.00025368,2]
[327871042,1716568239152,-7215.48133031,0.00025757,2]
[327871044,1716568239163,-3086.25866969,0.00025757,2]
[327871046,1716568239172,-151.23946595,0.00025769,2]
[327871048,1716568239181,-2799.99700117,0.00025803,2]
[327871393,1716568243107,-361.32,0.00025803,2]
[327871406,1716568243144,-432.917,0.00025803,2]
[327871410,1716568243156,-27206.50892441,0.00025803,2]
[327871414,1716568243166,-151.23946595,0.00025842,2]
[327871418,1716568243176,-258.75414086,0.00025917,2]
[327871422,1716568243186,-151.23946595,0.00025924,2]
[327871426,1716568243195,-155.16346672,0.00025924,2]
[327871430,1716568243205,-151.23946595,0.00025954,2]
[327871434,1716568243214,-1000.0,0.00026011,2]
[327871438,1716568243224,-154.55403175,0.00026097,2]
[327871442,1716568243233,-151.23946595,0.00026111,2]
[327871445,1716568243242,-155.16346672,0.00026185,2]
[327871448,1716568243251,-219.93,0.00026207,2]
[327871451,1716568243261,-151.23946595,0.00026269,2]
[327871454,1716568243269,-1430.81,0.00026545,2]
[327871457,1716568243278,-154.94429311,0.00026605,2]
[327871461,1716568243288,-154.45963167,0.0002669,2]
[327871464,1716568243297,-153.32326099,0.00026719,2]
[327871467,1716568243306,-154.94429311,0.00026721,2]
[327871470,1716568243316,-160.07720588,0.00026939,2]
[327871473,1716568243325,-852.21636549,0.00026946,2]
[327871476,1716568243334,-154.94429311,0.00027063,2]
[327871479,1716568243344,-151.23946595,0.00027107,2]
[327871482,1716568243353,-151.23946595,0.00027133,2]
[327871484,1716568243362,-166.73621259,0.00027205,2]
[327871486,1716568243371,-182.39621139,0.00027224,2]
[327871488,1716568243382,-258.75414086,0.00027272,2]
[327871490,1716568243391,-500.0,0.00027278,2]
[327871492,1716568243400,-500.0,0.00027279,2]
[327871494,1716568243409,-200.0,0.00027279,2]
[327871496,1716568243418,-834.25577502,0.000273,4]
[327871498,1716568243427,-2710.74884554,0.00027312,10]
[327871500,1716568243437,-153.15010597,0.0002738,2]
[327871502,1716568243446,-803.23,0.00027397,10]
[327871504,1716568243455,-862.32,0.00027397,10]
[327871506,1716568243465,-167.12367488,0.000274,2]
[327871508,1716568243474,-165.42920419,0.000274,2]
[327871510,1716568243483,-834.25577501,0.000274,4]
[327871512,1716568243492,-150.0,0.000274,5]
[327871514,1716568243502,-298.35670902,0.000274,2]
[327871516,1716568243511,-189.02310334,0.000274,5]
[327871518,1716568243521,-157.78948284,0.00027447,2]
[327871520,1716568243530,-152.85,0.0002749,2]
[327871522,1716568243540,-152.85,0.0002749,2]
[327871524,1716568243549,-152.85,0.0002749,2]
[327871526,1716568243559,-152.85,0.0002749,2]
[327871528,1716568243568,-152.85,0.0002749,2]
[327871530,1716568243577,-314.17082997,0.00027496,2]
[327871532,1716568243586,-281.59752891,0.00027496,2]
[327871534,1716568243596,-224.20448642,0.00027496,2]
[327871536,1716568243605,-35378.96571757,0.00027496,2]
[327871538,1716568243614,-501.43442458,0.00027498,2]
[327871540,1716568243624,-54934.59916827,0.00027498,2]
[327871557,1716568243776,-5619.8362805,0.00027498,2]
[327871561,1716568243789,-17803.25000001,0.00027498,2]
[327871568,1716568243819,-20234.69999998,0.00027498,2]
[327871571,1716568243832,-22300.782624,0.00027498,2]
[327871573,1716568243846,-33104.54569411,0.00027498,2]
[327871575,1716568243857,-470.203316,0.00027498,2]
[327871578,1716568243876,-7208.92585551,0.00027498,2]
[327871580,1716568243886,-4923.43800001,0.00027498,2]
[327871582,1716568243897,-3980.59789162,0.00027498,2]
[327871584,1716568243908,-1700.0,0.00027498,2]
[327871586,1716568243921,-154329.78010407,0.00027498,2]
[327871587,1716568243931,-389.30522083,0.00027498,2]
[327871589,1716568243940,-358.80859427,0.00027498,2]
[327871591,1716568243950,-318.65494683,0.00027498,2]
[327871593,1716568243959,-3284.46230029,0.00027498,2]
[327871595,1716568243968,-524.77160269,0.00027498,2]
[327871597,1716568243978,-1254.48628,0.00027499,2]
[327871599,1716568243987,-510.0,0.00027499,5]
[327871601,1716568243997,-1732708.3328463,0.000275,5]
[327871604,1716568244018,-1264.93211829,0.000275,5]
[327871606,1716568244030,-9432.69578766,0.000275,5]
[327871608,1716568244041,-3155.11991369,0.000275,5]
[327871610,1716568244052,-332.59159891,0.000275,5]
[327871612,1716568244063,-539.72834849,0.000275,5]
[327871614,1716568244074,-2009.24648043,0.000275,5]
[327871617,1716568244087,-737.3335734,0.000275,5]
[327871619,1716568244098,-392.4809798,0.000275,5]
[327872033,1716568248119,-389.7174445,0.00023888,2]
[327872036,1716568248128,-444.2808006,0.00023997,2]
[327872049,1716568248246,-518.33893308,0.00023997,2]
[327872063,1716568248371,-681.38026632,0.00023997,2]
[327872065,1716568248381,-407.87573368,0.00025803,2]
[327872068,1716568248393,-1337.7727096,0.00025803,2]
[327872070,1716568248404,-3150.77155672,0.00025803,2]
[327872072,1716568248414,-2074.30380781,0.00026543,2]
[327872074,1716568248423,-404.29953494,0.00026543,2]
[327872076,1716568248432,-466.52590568,0.00026544,2]
[327872078,1716568248441,-505.36917605,0.00026544,2]
[327872080,1716568248451,-957.718,0.00026997,2]
[327872082,1716568248459,-264.68125407,0.0002749,3]
[327872226,1716568261143,155.0,0.00010804,2]
[327872227,1716568265829,94112.70501214,0.00010804,2]
[327872228,1716568323702,173.75,0.00025448,120]
[327872229,1716568324046,173.75,0.0002863,120]
[327872230,1716568565256,222.24,0.00010959,2]
[327872231,1716568575991,828.45,0.00010959,2]
[327872232,1716568642211,191.39,0.00010959,2]
[327872233,1716568765794,-1357.0,0.00012663,2]
[327872236,1716568861158,-505.36917605,0.00012597,2]
[327872237,1716568861189,-2673.325242,0.00012598,2]
[327872238,1716568861213,-505.36917605,0.00012661,2]
[327872239,1716568861247,-845.37315861,0.00012661,2]
[327872240,1716568861256,-1012.30856095,0.00012729,2]
[327872241,1716568861266,-815.64352244,0.0001273,2]
[327872242,1716568861278,-588.6111639,0.0001273,2]
[327872244,1716568888902,-155.0,0.00012595,2]
[327872245,1716568888942,-155.0,0.00012595,2]
[327872246,1716568888976,-155.16701974,0.00012596,2]
[327872247,1716568889012,-155.0,0.00012663,2]
[327872248,1716568889041,-155.0,0.0001273,2]
[327872249,1716568889064,-155.0,0.0001273,2]
[327872250,1716568889076,-155.16701974,0.0001273,2]
[327872251,1716568889090,-155.0,0.0001273,2]
[327872252,1716568889103,-411.66596052,0.0001273,2]
[327872253,1716568892956,160.2,0.00010418,2]
[327872254,1716568920553,-2516.0,0.0001273,2]
[327872257,1716569016883,-23000.0,0.00011974,2]
[327872258,1716569040785,150.0,9.579e-05,2]
[327872270,1716569283542,384.54,0.00010139,2]
[327872283,1716569401168,-505.36917605,0.00011971,2]
[327872284,1716569401191,-155.0,0.00011972,2]
[327872285,1716569401214,-900.0,0.00011974,2]
[327872286,1716569401243,-250.0,0.00011974,2]
[327872287,1716569401268,-3819.28,0.00011987,2]
[327872288,1716569401293,-1000.0,0.00012117,2]
[327872289,1716569401315,-828.98,0.00012142,2]
[327872290,1716569401338,-200.0,0.000123,4]
[327872291,1716569401363,-500.0,0.000124,4]
[327872292,1716569401385,-384.54,0.00012403,2]
[327872293,1716569401407,-800.0,0.000125,4]
[327872294,1716569401430,-1100.0,0.000126,4]
[327872295,1716569401453,-1400.0,0.000127,4]
[327872296,1716569401476,-250.0,0.00012707,2]
[327872297,1716569401499,-3053.68,0.00012707,2]
[327872298,1716569401520,-2473.35,0.00012707,2]
[327872299,1716569401542,-150.0,0.00012712,2]
[327872300,1716569401565,-95629.81509898,0.0001273,2]
[327872301,1716569401805,-499.99,0.0001273,2]
[327872302,1716569401828,-155.0,0.0001273,2]
[327872303,1716569401850,-200.0,0.000128,4]
[327872304,1716569401872,-790.26530989,0.00012864,2]
[327872305,1716569401894,-152.01,0.00012879,2]
[327872306,1716569401916,-172.35606958,0.000129,2]
[327872307,1716569401937,-502.95336132,0.000129,2]
[327872308,1716569401958,-3952.58285523,0.000129,2]